[Event "Late-Titled-Tuesday-Blitz-March-26-2024"]
[Site "Chess.com"]
[Date "2024.03.26"]
[Round "7"]
[White "LikeWater"]
[Black "dennisodessa"]
[Result "0-1"]
[WhiteElo "2696"]
[BlackElo "2535"]
[TimeControl "180+1"]
[EndTime "15:19:00 PDT"]
[Termination "dennisodessa won on time"]

1. e4 {[%clk 0:03:00.9]} 1... e6 {[%clk 0:02:59.7]} 2. d4 {[%clk 0:02:54.3]}
2... d5 {[%clk 0:02:59.8]} 3. Bd3 {[%clk 0:02:54.9]} 3... dxe4 {[%clk
0:02:59.7]} 4. Bxe4 {[%clk 0:02:55.8]} 4... Nf6 {[%clk 0:03:00.6]} 5. Bf3 {[%clk
0:02:55.2]} 5... Nbd7 {[%clk 0:03:01.5]} 6. Ne2 {[%clk 0:02:50.6]} 6... e5
{[%clk 0:03:01.5]} 7. Ng3 {[%clk 0:02:41.4]} 7... exd4 {[%clk 0:02:58.7]} 8.
Qxd4 {[%clk 0:02:42.3]} 8... Bc5 {[%clk 0:02:59.1]} 9. Qh4 {[%clk 0:02:35.1]}
9... Qe7+ {[%clk 0:02:58.8]} 10. Be2 {[%clk 0:02:29.1]} 10... Bxf2+ {[%clk
0:02:48.5]} 11. Kxf2 {[%clk 0:02:26.3]} 11... Ne5 {[%clk 0:02:40.9]} 12. Bg5
{[%clk 0:01:35]} 12... Qc5+ {[%clk 0:01:32.9]} 13. Be3 {[%clk 0:01:34.7]} 13...
Qxc2 {[%clk 0:01:33.1]} 14. h3 {[%clk 0:01:06.8]} 14... O-O {[%clk 0:01:06.5]}
15. Nd2 {[%clk 0:01:03.4]} 15... Nd3+ {[%clk 0:00:57.4]} 16. Bxd3 {[%clk
0:01:01.5]} 16... Qxd3 {[%clk 0:00:58.3]} 17. Qd4 {[%clk 0:00:55.7]} 17... Qg6
{[%clk 0:00:58.2]} 18. Nf3 {[%clk 0:00:47]} 18... Be6 {[%clk 0:00:58.3]} 19.
Rac1 {[%clk 0:00:40.8]} 19... Rfd8 {[%clk 0:00:55.1]} 20. Qa4 {[%clk 0:00:26.7]}
20... Nd5 {[%clk 0:00:55.6]} 21. Rhe1 {[%clk 0:00:19.9]} 21... Rd6 {[%clk
0:00:37.9]} 22. Qh4 {[%clk 0:00:19.2]} 22... Rad8 {[%clk 0:00:32.1]} 23. Ne5
{[%clk 0:00:16.2]} 23... Qf6+ {[%clk 0:00:20.3]} 24. Qxf6 {[%clk 0:00:16.6]}
24... Nxf6 {[%clk 0:00:21.2]} 25. Nf3 {[%clk 0:00:16.9]} 25... c6 {[%clk
0:00:19.8]} 26. Bg5 {[%clk 0:00:16.7]} 26... Bxa2 {[%clk 0:00:19.3]} 27. Ra1
{[%clk 0:00:14.9]} 27... Bd5 {[%clk 0:00:19.6]} 28. Rxa7 {[%clk 0:00:13.3]}
28... c5 {[%clk 0:00:20]} 29. Nf5 {[%clk 0:00:12.2]} 29... Rb6 {[%clk
0:00:20.2]} 30. Ne7+ {[%clk 0:00:11.6]} 30... Kf8 {[%clk 0:00:20.9]} 31. Nxd5
{[%clk 0:00:10.8]} 31... Rxb2+ {[%clk 0:00:20.1]} 32. Kg1 {[%clk 0:00:09.5]}
32... Re8 {[%clk 0:00:17.2]} 33. Rxe8+ {[%clk 0:00:08.9]} 33... Kxe8 {[%clk
0:00:18.1]} 34. Nxf6+ {[%clk 0:00:08.3]} 34... gxf6 {[%clk 0:00:19]} 35. Bxf6
{[%clk 0:00:09.2]} 35... Rb1+ {[%clk 0:00:19.9]} 36. Kf2 {[%clk 0:00:09.4]}
36... Kd7 {[%clk 0:00:20.8]} 37. Bg7 {[%clk 0:00:08]} 37... Ke6 {[%clk
0:00:21.7]} 38. g4 {[%clk 0:00:07.6]} 38... b5 {[%clk 0:00:21.6]} 39. Rc7 {[%clk
0:00:07.1]} 39... Kd5 {[%clk 0:00:21.7]} 40. Rxf7 {[%clk 0:00:07.2]} 40... b4
{[%clk 0:00:22]} 41. Bf6 {[%clk 0:00:07]} 41... c4 {[%clk 0:00:22.3]} 42. Rxh7
{[%clk 0:00:07.1]} 42... c3 {[%clk 0:00:20.6]} 43. Rc7 {[%clk 0:00:07.3]} 43...
Rc1 {[%clk 0:00:19.2]} 44. Ke3 {[%clk 0:00:07.3]} 44... Ke6 {[%clk 0:00:19.6]}
45. Bd4 {[%clk 0:00:06.5]} 45... Kd6 {[%clk 0:00:20.5]} 46. Rc8 {[%clk
0:00:06.5]} 46... Kd5 {[%clk 0:00:19.5]} 47. Rc5+ {[%clk 0:00:06.2]} 47... Kd6
{[%clk 0:00:19.9]} 48. Rc4 {[%clk 0:00:07.1]} 48... Rb1 {[%clk 0:00:19.2]} 49.
Bc5+ {[%clk 0:00:05.7]} 49... Kd5 {[%clk 0:00:18.1]} 50. Rxb4 {[%clk 0:00:05.5]}
50... c2 {[%clk 0:00:16.6]} 51. Rd4+ {[%clk 0:00:01.4]} 51... Kxc5 {[%clk
0:00:16.7]} 0-1

[Event "Late-Titled-Tuesday-Blitz-March-26-2024"]
[Site "Chess.com"]
[Date "2024.03.26"]
[Round "7"]
[White "GMBenjaminBok"]
[Black "RandomNoob04"]
[Result "1-0"]
[WhiteElo "2974"]
[BlackElo "2674"]
[TimeControl "180+1"]
[EndTime "15:19:02 PDT"]
[Termination "GMBenjaminBok won by resignation"]

1. d4 {[%clk 0:03:00.9]} 1... Nf6 {[%clk 0:02:59.8]} 2. c4 {[%clk 0:02:58.9]}
2... c5 {[%clk 0:03:00.4]} 3. Nf3 {[%clk 0:02:55.9]} 3... cxd4 {[%clk
0:03:01.3]} 4. Nxd4 {[%clk 0:02:56.5]} 4... b6 {[%clk 0:03:01.1]} 5. Nc3 {[%clk
0:02:53.4]} 5... Bb7 {[%clk 0:03:02]} 6. f3 {[%clk 0:02:53.1]} 6... e6 {[%clk
0:02:58]} 7. e4 {[%clk 0:02:52.9]} 7... Nc6 {[%clk 0:02:45.2]} 8. Be3 {[%clk
0:02:51.1]} 8... Be7 {[%clk 0:02:31.7]} 9. Be2 {[%clk 0:02:50.9]} 9... O-O
{[%clk 0:02:32.1]} 10. O-O {[%clk 0:02:49.9]} 10... Rc8 {[%clk 0:02:32]} 11. Rc1
{[%clk 0:02:45]} 11... Ne5 {[%clk 0:02:26.2]} 12. b3 {[%clk 0:02:41.9]} 12... a6
{[%clk 0:02:26.3]} 13. Qd2 {[%clk 0:02:29.3]} 13... d5 {[%clk 0:02:08.1]} 14.
cxd5 {[%clk 0:02:25.3]} 14... exd5 {[%clk 0:02:09]} 15. Nxd5 {[%clk 0:02:01.9]}
15... Nxd5 {[%clk 0:01:58]} 16. exd5 {[%clk 0:02:02.8]} 16... Qxd5 {[%clk
0:01:48.2]} 17. Nf5 {[%clk 0:01:58.4]} 17... Ba3 {[%clk 0:01:05.7]} 18. Rxc8
{[%clk 0:01:43]} 18... Rxc8 {[%clk 0:01:06.6]} 19. Qxd5 {[%clk 0:01:42.8]} 19...
Bxd5 {[%clk 0:01:07.5]} 20. Bxa6 {[%clk 0:01:29.8]} 20... Ra8 {[%clk 0:00:36.2]}
21. Bb5 {[%clk 0:01:24.6]} 21... Be6 {[%clk 0:00:32.6]} 22. Nd4 {[%clk 0:01:14]}
22... Bc5 {[%clk 0:00:32.6]} 23. Re1 {[%clk 0:01:10.7]} 23... Bd7 {[%clk
0:00:20]} 24. Bxd7 {[%clk 0:01:01.7]} 24... Nxd7 {[%clk 0:00:20.9]} 25. a4
{[%clk 0:00:46.4]} 25... Nf6 {[%clk 0:00:14.5]} 26. Nc2 {[%clk 0:00:34.6]} 26...
Rc8 {[%clk 0:00:14.4]} 27. Bxc5 {[%clk 0:00:34]} 27... Rxc5 {[%clk 0:00:15.3]}
28. Nd4 {[%clk 0:00:22.1]} 28... Kf8 {[%clk 0:00:15.8]} 29. Kf2 {[%clk
0:00:20.6]} 29... g6 {[%clk 0:00:12.4]} 30. Re3 {[%clk 0:00:11.2]} 30... Nd5
{[%clk 0:00:12.2]} 31. Re5 {[%clk 0:00:11]} 31... Kg7 {[%clk 0:00:05.7]} 32. g3
{[%clk 0:00:10.9]} 32... Kg8 {[%clk 0:00:03.9]} 33. f4 {[%clk 0:00:10.3]} 33...
f6 {[%clk 0:00:04.4]} 34. Re8+ {[%clk 0:00:08.2]} 34... Kf7 {[%clk 0:00:04.8]}
35. Rd8 {[%clk 0:00:07.3]} 35... Ke7 {[%clk 0:00:03.8]} 36. Rh8 {[%clk
0:00:06.9]} 36... h5 {[%clk 0:00:04.3]} 37. Rh7+ {[%clk 0:00:07.2]} 37... Kf8
{[%clk 0:00:04.4]} 38. Ne6+ {[%clk 0:00:06.6]} 38... Kg8 {[%clk 0:00:05.1]} 39.
Rg7+ {[%clk 0:00:06.5]} 39... Kh8 {[%clk 0:00:05.8]} 40. Nxc5 {[%clk 0:00:05.2]}
40... Kxg7 {[%clk 0:00:05.8]} 41. Nd3 {[%clk 0:00:03.4]} 41... Kf7 {[%clk
0:00:05.9]} 42. Kf3 {[%clk 0:00:03.8]} 42... Ke6 {[%clk 0:00:06]} 43. Ke4 {[%clk
0:00:04]} 43... Nc3+ {[%clk 0:00:06.1]} 44. Kd4 {[%clk 0:00:04]} 44... Ne2+
{[%clk 0:00:05.9]} 45. Kc4 {[%clk 0:00:04.6]} 45... Kf5 {[%clk 0:00:05.3]} 46.
Kb5 {[%clk 0:00:03.5]} 46... Ke4 {[%clk 0:00:05.6]} 47. Nb2 {[%clk 0:00:02.3]}
47... Nd4+ {[%clk 0:00:04.9]} 48. Kc4 {[%clk 0:00:02.9]} 48... Nf3 {[%clk
0:00:04.2]} 49. b4 {[%clk 0:00:03.1]} 49... Nxh2 {[%clk 0:00:04.4]} 50. a5
{[%clk 0:00:03.4]} 50... bxa5 {[%clk 0:00:05]} 51. bxa5 {[%clk 0:00:04.3]} 51...
Nf1 {[%clk 0:00:04.6]} 52. a6 {[%clk 0:00:04.7]} 52... Ne3+ {[%clk 0:00:05.3]}
53. Kc5 {[%clk 0:00:04.6]} 53... Nd5 {[%clk 0:00:06]} 54. a7 {[%clk 0:00:05]}
54... Nc7 {[%clk 0:00:06.6]} 55. Kc6 {[%clk 0:00:05.6]} 55... Na8 {[%clk
0:00:05.9]} 56. Kb7 {[%clk 0:00:06.1]} 56... g5 {[%clk 0:00:06]} 57. fxg5 {[%clk
0:00:05.4]} 57... fxg5 {[%clk 0:00:06.9]} 58. Kxa8 {[%clk 0:00:05.7]} 58... h4
{[%clk 0:00:07.8]} 59. gxh4 {[%clk 0:00:05.9]} 59... gxh4 {[%clk 0:00:08.5]} 60.
Kb8 {[%clk 0:00:06.2]} 60... h3 {[%clk 0:00:09.1]} 61. a8=Q+ {[%clk 0:00:07.1]}
61... Kf4 {[%clk 0:00:09.4]} 62. Qh1 {[%clk 0:00:07.5]} 1-0

[Event "Late-Titled-Tuesday-Blitz-March-26-2024"]
[Site "Chess.com"]
[Date "2024.03.26"]
[Round "7"]
[White "LeoWin2012"]
[Black "TemploVillamarin"]
[Result "0-1"]
[WhiteElo "2294"]
[BlackElo "2272"]
[TimeControl "180+1"]
[EndTime "15:19:04 PDT"]
[Termination "TemploVillamarin won by checkmate"]

1. e4 {[%clk 0:02:57.9]} 1... d5 {[%clk 0:02:59.6]} 2. exd5 {[%clk 0:02:57]}
2... Qxd5 {[%clk 0:02:58.6]} 3. Nc3 {[%clk 0:02:56.7]} 3... Qa5 {[%clk
0:02:58.8]} 4. d4 {[%clk 0:02:56.6]} 4... Nf6 {[%clk 0:02:59.4]} 5. Bd2 {[%clk
0:02:56.5]} 5... c6 {[%clk 0:02:55.9]} 6. h3 {[%clk 0:02:54.9]} 6... Bf5 {[%clk
0:02:52.4]} 7. Nf3 {[%clk 0:02:53.6]} 7... Nbd7 {[%clk 0:02:50.3]} 8. Bc4 {[%clk
0:02:53]} 8... e6 {[%clk 0:02:40.1]} 9. O-O {[%clk 0:02:34.7]} 9... Qc7 {[%clk
0:02:39.7]} 10. Re1 {[%clk 0:02:33.5]} 10... Be7 {[%clk 0:02:33.5]} 11. Ne5
{[%clk 0:02:32.7]} 11... O-O {[%clk 0:02:29.7]} 12. Bf4 {[%clk 0:02:33]} 12...
Nxe5 {[%clk 0:02:26.4]} 13. dxe5 {[%clk 0:02:26.8]} 13... Nd5 {[%clk 0:02:25.2]}
14. Nxd5 {[%clk 0:02:21.8]} 14... cxd5 {[%clk 0:02:21.7]} 15. Bd3 {[%clk
0:02:21.9]} 15... Bxd3 {[%clk 0:02:21.3]} 16. Qxd3 {[%clk 0:02:22.8]} 16... Rac8
{[%clk 0:02:19.8]} 17. c3 {[%clk 0:02:20.7]} 17... Qc4 {[%clk 0:02:20.2]} 18.
Qg3 {[%clk 0:02:17.8]} 18... Rfd8 {[%clk 0:02:12.4]} 19. Rad1 {[%clk 0:02:15.5]}
19... d4 {[%clk 0:02:03.3]} 20. Bh6 {[%clk 0:02:11.8]} 20... g6 {[%clk
0:01:46.8]} 21. Re4 {[%clk 0:02:11.2]} 21... Qxa2 {[%clk 0:01:34.5]} 22. Rexd4
{[%clk 0:02:08.3]} 22... Qxb2 {[%clk 0:01:14.6]} 23. Rxd8+ {[%clk 0:02:07.2]}
23... Rxd8 {[%clk 0:01:12.1]} 24. Rxd8+ {[%clk 0:02:07.2]} 24... Bxd8 {[%clk
0:01:03.5]} 25. Qd3 {[%clk 0:02:08.1]} 25... Bb6 {[%clk 0:00:53.3]} 26. Qf3
{[%clk 0:01:35.4]} 26... Qb1+ {[%clk 0:00:28.4]} 27. Kh2 {[%clk 0:01:33.4]}
27... Qf5 {[%clk 0:00:28.5]} 28. Qxb7 {[%clk 0:01:29.7]} 28... Qxe5+ {[%clk
0:00:28.5]} 29. f4 {[%clk 0:01:25.9]} 29... Qc7 {[%clk 0:00:28.4]} 30. Qa8+
{[%clk 0:01:15.7]} 30... Qd8 {[%clk 0:00:28.7]} 31. Qc6 {[%clk 0:01:15.2]} 31...
a5 {[%clk 0:00:19.7]} 32. c4 {[%clk 0:01:15.5]} 32... Bc7 {[%clk 0:00:17.8]} 33.
c5 {[%clk 0:01:13]} 33... e5 {[%clk 0:00:15.6]} 34. f5 {[%clk 0:00:56.9]} 34...
gxf5 {[%clk 0:00:14.8]} 35. g3 {[%clk 0:00:34.9]} 35... e4 {[%clk 0:00:10.5]}
36. Qb5 {[%clk 0:00:24.2]} 36... Be5 {[%clk 0:00:09.5]} 37. c6 {[%clk
0:00:22.2]} 37... Qd4 {[%clk 0:00:07.6]} 38. c7 {[%clk 0:00:05]} 38... Qf2+
{[%clk 0:00:04.6]} 39. Kh1 {[%clk 0:00:05.1]} 39... Qf3+ {[%clk 0:00:02.6]} 40.
Kg1 {[%clk 0:00:04.9]} 40... Qxg3+ {[%clk 0:00:03.5]} 41. Kf1 {[%clk 0:00:05.3]}
41... Qf3+ {[%clk 0:00:04.4]} 42. Ke1 {[%clk 0:00:05.6]} 42... Bc3+ {[%clk
0:00:04]} 43. Bd2 {[%clk 0:00:03.4]} 43... Qe3+ {[%clk 0:00:04.5]} 44. Kf1
{[%clk 0:00:04]} 44... Qf3+ {[%clk 0:00:05.2]} 45. Ke1 {[%clk 0:00:03.8]} 45...
Qe3+ {[%clk 0:00:04.9]} 46. Qe2 {[%clk 0:00:02.5]} 46... Bxd2+ {[%clk
0:00:05.3]} 47. Kd1 {[%clk 0:00:03]} 47... Qb3+ {[%clk 0:00:05.3]} 48. Kxd2
{[%clk 0:00:03.2]} 48... Qb4+ {[%clk 0:00:05.9]} 49. Kd1 {[%clk 0:00:03.4]}
49... Qb3+ {[%clk 0:00:06.1]} 50. Qc2 {[%clk 0:00:03.6]} 50... Qf3+ {[%clk
0:00:07]} 51. Kc1 {[%clk 0:00:03.9]} 51... Qe3+ {[%clk 0:00:07.2]} 52. Kb1
{[%clk 0:00:04.3]} 52... Qb6+ {[%clk 0:00:07.4]} 53. Ka1 {[%clk 0:00:04]} 53...
Qf6+ {[%clk 0:00:06.4]} 54. Ka2 {[%clk 0:00:04.2]} 54... Qe6+ {[%clk 0:00:06.6]}
55. Ka3 {[%clk 0:00:04.7]} 55... Qd6+ {[%clk 0:00:06]} 56. Ka4 {[%clk
0:00:05.2]} 56... Qb4# {[%clk 0:00:06.3]} 0-1

[Event "Late-Titled-Tuesday-Blitz-March-26-2024"]
[Site "Chess.com"]
[Date "2024.03.26"]
[Round "7"]
[White "Bilan_Danila"]
[Black "Zhigalko_Sergei"]
[Result "0-1"]
[WhiteElo "2635"]
[BlackElo "2893"]
[TimeControl "180+1"]
[EndTime "15:19:05 PDT"]
[Termination "Zhigalko_Sergei won by resignation"]

1. d4 {[%clk 0:02:58.7]} 1... Nf6 {[%clk 0:02:55.1]} 2. Nf3 {[%clk 0:02:58.8]}
2... e6 {[%clk 0:02:53.5]} 3. g3 {[%clk 0:02:55]} 3... b5 {[%clk 0:02:53.1]} 4.
Bg2 {[%clk 0:02:52.8]} 4... Bb7 {[%clk 0:02:52.9]} 5. a4 {[%clk 0:02:52.3]} 5...
b4 {[%clk 0:02:52.3]} 6. c4 {[%clk 0:02:51.9]} 6... Be7 {[%clk 0:02:34.9]} 7.
O-O {[%clk 0:02:48.3]} 7... O-O {[%clk 0:02:34.7]} 8. b3 {[%clk 0:02:43.7]} 8...
c5 {[%clk 0:02:32.3]} 9. Bb2 {[%clk 0:02:31.9]} 9... cxd4 {[%clk 0:02:32.1]} 10.
Qxd4 {[%clk 0:02:23.2]} 10... Na6 {[%clk 0:02:26.4]} 11. Nbd2 {[%clk 0:02:05.9]}
11... Nc5 {[%clk 0:02:24.6]} 12. Ne5 {[%clk 0:02:02.1]} 12... Bxg2 {[%clk
0:02:22.8]} 13. Kxg2 {[%clk 0:02:03]} 13... Qc7 {[%clk 0:02:22.2]} 14. Nd3
{[%clk 0:01:55.8]} 14... d6 {[%clk 0:01:56.2]} 15. Nxc5 {[%clk 0:01:50.7]} 15...
dxc5 {[%clk 0:01:55.5]} 16. Qe3 {[%clk 0:01:45.9]} 16... Rad8 {[%clk 0:01:51.7]}
17. Rad1 {[%clk 0:01:43.6]} 17... Ng4 {[%clk 0:01:36.5]} 18. Qf3 {[%clk
0:01:39.5]} 18... f5 {[%clk 0:01:36]} 19. h3 {[%clk 0:01:18]} 19... Bf6 {[%clk
0:01:33.4]} 20. hxg4 {[%clk 0:01:04]} 20... Bxb2 {[%clk 0:01:33.3]} 21. gxf5
{[%clk 0:01:00.5]} 21... exf5 {[%clk 0:01:32.1]} 22. e3 {[%clk 0:00:51.7]} 22...
g6 {[%clk 0:01:20.1]} 23. Nb1 {[%clk 0:00:41.5]} 23... Kg7 {[%clk 0:01:17.7]}
24. Rxd8 {[%clk 0:00:33.2]} 24... Rxd8 {[%clk 0:01:18.6]} 25. Rd1 {[%clk
0:00:33.6]} 25... h5 {[%clk 0:01:17.5]} 26. Rd5 {[%clk 0:00:25.7]} 26... Bf6
{[%clk 0:01:00]} 27. Nd2 {[%clk 0:00:22.7]} 27... Rh8 {[%clk 0:00:41.7]} 28. e4
{[%clk 0:00:20.1]} 28... fxe4 {[%clk 0:00:10.4]} 29. Nxe4 {[%clk 0:00:19.9]}
29... Bd4 {[%clk 0:00:11]} 30. Ng5 {[%clk 0:00:17.4]} 30... Qe7 {[%clk
0:00:10.6]} 31. Qf4 {[%clk 0:00:04]} 31... Rf8 {[%clk 0:00:07]} 32. Qd6 {[%clk
0:00:03.5]} 32... Rxf2+ {[%clk 0:00:06.9]} 33. Kh3 {[%clk 0:00:04.1]} 33... Qxd6
{[%clk 0:00:05.4]} 34. Rxd6 {[%clk 0:00:05]} 34... Rb2 {[%clk 0:00:03.7]} 35.
Ne4 {[%clk 0:00:03.2]} 35... Bg1 {[%clk 0:00:03.2]} 36. Rd7+ {[%clk 0:00:03.1]}
36... Kh6 {[%clk 0:00:02.4]} 37. g4 {[%clk 0:00:03.8]} 37... Rxb3+ {[%clk
0:00:02.7]} 38. Kg2 {[%clk 0:00:03.9]} 38... Be3 {[%clk 0:00:01.9]} 39. gxh5
{[%clk 0:00:02.8]} 39... Kxh5 {[%clk 0:00:02.7]} 40. Nf6+ {[%clk 0:00:03]} 40...
Kg5 {[%clk 0:00:02.7]} 41. Ne4+ {[%clk 0:00:03.6]} 41... Kf4 {[%clk 0:00:02.7]}
42. Nf6 {[%clk 0:00:02.4]} 42... Rb2+ {[%clk 0:00:03.1]} 43. Kf1 {[%clk
0:00:02.5]} 43... Bd4 {[%clk 0:00:03.5]} 44. Nd5+ {[%clk 0:00:02.6]} 44... Ke4
{[%clk 0:00:03.3]} 45. Re7+ {[%clk 0:00:02.1]} 45... Kd3 {[%clk 0:00:03.4]} 46.
Nf4+ {[%clk 0:00:03]} 46... Kxc4 {[%clk 0:00:03.7]} 47. Nxg6 {[%clk 0:00:03.9]}
47... b3 {[%clk 0:00:04.1]} 48. Rb7 {[%clk 0:00:03.4]} 48... Ra2 {[%clk
0:00:04.4]} 49. Nf4 {[%clk 0:00:03.4]} 49... Ra1+ {[%clk 0:00:04.8]} 50. Ke2
{[%clk 0:00:03.2]} 50... b2 {[%clk 0:00:05.7]} 0-1

[Event "Late-Titled-Tuesday-Blitz-March-26-2024"]
[Site "Chess.com"]
[Date "2024.03.26"]
[Round "7"]
[White "dealshark"]
[Black "Shiner22"]
[Result "1-0"]
[WhiteElo "2288"]
[BlackElo "2372"]
[TimeControl "180+1"]
[EndTime "15:19:08 PDT"]
[Termination "dealshark won on time"]

1. e4 {[%clk 0:03:00.9]} 1... c5 {[%clk 0:02:58.9]} 2. c3 {[%clk 0:03:00.8]}
2... d5 {[%clk 0:02:52.5]} 3. exd5 {[%clk 0:03:01]} 3... Qxd5 {[%clk 0:02:53.2]}
4. d4 {[%clk 0:03:01.7]} 4... e5 {[%clk 0:02:53.5]} 5. Nf3 {[%clk 0:03:02.3]}
5... Nc6 {[%clk 0:02:53.2]} 6. Nxe5 {[%clk 0:02:58.1]} 6... Nxe5 {[%clk
0:02:51.9]} 7. dxe5 {[%clk 0:02:57.6]} 7... Qxd1+ {[%clk 0:02:50.7]} 8. Kxd1
{[%clk 0:02:57.8]} 8... Bg4+ {[%clk 0:02:51.1]} 9. Be2 {[%clk 0:02:56.1]} 9...
O-O-O+ {[%clk 0:02:51]} 10. Nd2 {[%clk 0:02:52.8]} 10... Nh6 {[%clk 0:02:44.4]}
11. h3 {[%clk 0:02:48]} 11... Bf5 {[%clk 0:02:37]} 12. f4 {[%clk 0:02:44.2]}
12... f6 {[%clk 0:02:25.8]} 13. exf6 {[%clk 0:02:06.5]} 13... gxf6 {[%clk
0:02:24.6]} 14. Bf3 {[%clk 0:02:00]} 14... Bd3 {[%clk 0:02:22.5]} 15. Nb3 {[%clk
0:01:46.2]} 15... Nf5 {[%clk 0:02:18.6]} 16. Ke1 {[%clk 0:01:19.4]} 16... c4
{[%clk 0:02:11.4]} 17. Nd4 {[%clk 0:01:11.9]} 17... Nxd4 {[%clk 0:02:10.8]} 18.
cxd4 {[%clk 0:01:12.4]} 18... Bb4+ {[%clk 0:02:06.9]} 19. Bd2 {[%clk 0:01:11.8]}
19... Rhe8+ {[%clk 0:02:06.5]} 20. Kd1 {[%clk 0:01:10.8]} 20... Bxd2 {[%clk
0:02:05.6]} 21. Kxd2 {[%clk 0:01:11]} 21... Rxd4 {[%clk 0:02:05.8]} 22. Kc3
{[%clk 0:01:06.7]} 22... Rxf4 {[%clk 0:02:03.7]} 23. Rae1 {[%clk 0:01:06.2]}
23... Rd8 {[%clk 0:01:54.5]} 24. Re7 {[%clk 0:01:03.8]} 24... Rd7 {[%clk
0:01:54.7]} 25. Rhe1 {[%clk 0:01:03.3]} 25... b5 {[%clk 0:01:49.9]} 26. Re8+
{[%clk 0:01:00.1]} 26... Kc7 {[%clk 0:01:49.2]} 27. Ra8 {[%clk 0:00:57.8]} 27...
Kd6 {[%clk 0:01:48.4]} 28. Rb8 {[%clk 0:00:55.6]} 28... Kc5 {[%clk 0:01:28.4]}
29. Re6 {[%clk 0:00:49.5]} 29... Rc7 {[%clk 0:01:19.6]} 30. b4+ {[%clk
0:00:44.7]} 30... cxb3 {[%clk 0:01:14.8]} 31. Kxd3 {[%clk 0:00:39]} 31... bxa2
{[%clk 0:00:55]} 32. Re1 {[%clk 0:00:39.1]} 32... Kb4 {[%clk 0:00:46.7]} 33. Ra1
{[%clk 0:00:31.1]} 33... Rd7+ {[%clk 0:00:43.4]} 34. Ke3 {[%clk 0:00:27.2]}
34... Rf5 {[%clk 0:00:40.8]} 35. Rxa2 {[%clk 0:00:25.8]} 35... Re5+ {[%clk
0:00:38.5]} 36. Kf4 {[%clk 0:00:25.2]} 36... Kb3 {[%clk 0:00:31.7]} 37. Ra6
{[%clk 0:00:19.6]} 37... b4 {[%clk 0:00:30]} 38. Ra8 {[%clk 0:00:11.3]} 38...
Rd4+ {[%clk 0:00:27.2]} 39. Kg3 {[%clk 0:00:11]} 39... Kc2 {[%clk 0:00:26.1]}
40. R8xa7 {[%clk 0:00:10.6]} 40... b3 {[%clk 0:00:25.6]} 41. Rb6 {[%clk
0:00:11.2]} 41... Rc4 {[%clk 0:00:22.1]} 42. Rab7 {[%clk 0:00:10.9]} 42... Rc3
{[%clk 0:00:21.8]} 43. Kf4 {[%clk 0:00:10.8]} 43... Ra5 {[%clk 0:00:19.6]} 44.
Be4+ {[%clk 0:00:10.4]} 44... Kb2 {[%clk 0:00:18.3]} 45. Bxh7 {[%clk 0:00:09.1]}
45... Ra4+ {[%clk 0:00:17.8]} 46. Kf5 {[%clk 0:00:08.2]} 46... Ka2 {[%clk
0:00:15.4]} 47. Bg8 {[%clk 0:00:07.1]} 47... Ra5+ {[%clk 0:00:10.6]} 48. Kxf6
{[%clk 0:00:06.5]} 48... Ka1 {[%clk 0:00:10]} 49. Rxb3 {[%clk 0:00:06.2]} 49...
Rc6+ {[%clk 0:00:07.5]} 50. Be6 {[%clk 0:00:04.1]} 50... Raa6 {[%clk 0:00:06.8]}
51. Re7 {[%clk 0:00:04]} 51... Ka2 {[%clk 0:00:03.8]} 52. Re3+ {[%clk
0:00:03.7]} 52... Kb1 {[%clk 0:00:02.4]} 53. g4 {[%clk 0:00:01.4]} 53... Kc1
{[%clk 0:00:02.4]} 54. g5 {[%clk 0:00:02]} 54... Kd2 {[%clk 0:00:02.8]} 55. g6
{[%clk 0:00:02.7]} 55... Kxe3 {[%clk 0:00:02.1]} 56. g7 {[%clk 0:00:03.4]} 56...
Rc8 {[%clk 0:00:01.3]} 57. h4 {[%clk 0:00:03.9]} 1-0